Cogmind - Beta 12 @@@ ROGUE MODE // 2023.05.05 @ 07:30:35 Player: Mr Goldstein Result: Self-destructed Performance ------------- Evolutions (1) 500 Regions Visited (5) 1000 Robots Destroyed (1) 5 Value Destroyed (47) 47 Prototype IDs (23) 460 Alien Tech Used (0) 0 Bonus (595) 595 TOTAL SCORE: 2607 Bonus ------- Pacifist 200 Follower Combat Kills 95 Aligned with FarCom 300 Cogmind --------- Core Integrity 81/400 Matter 280/300 Energy 99/100 System Corruption 0% Temperature Cool (0) Movement Core (50) Location -8/Mines Parts ------- > --- POWER (1) -------- (None) > --- PROPULSION (2) --- (None) > --- UTILITY (4) ------ Improved Utility Shielding System Shield > --- WEAPON (2) ------- (None) > --- INVENTORY (5) ---- Faulty Experimental Sensor Array AWS/Gauss Peak State ------------ > --- POWER ------------ (None) > --- PROPULSION ------- Flight Unit > --- UTILITY ---------- (None) > --- WEAPON ----------- AWS/Gauss > --- INVENTORY -------- Experimental Sensor Array [Rating: 17] Favorites ----------- Power None Propulsion Light Treads Treads Light Treads Flight Unit Flight Unit Utility System Shield Hackware System Shield Protection Improved Utility Shielding Weapon AWS/Gauss Ballistic Gun AWS/Gauss Build | -11 -10 -9 -9 -9 -8 ------- Run | Jun Mat Mat Min Exi Min Slots Evolved 2 | . . 2 . . . Power . | . . . . . . Propulsion . | . . . . . . Utility 2 | . . 2 . . . Weapon . | . . . . . . Parts Attached 6 | 2 . . 1 . 3 Power . | . . . . . . Engine . | . . . . . . Core . | . . . . . . Reactor . | . . . . . . Propulsion 3 | 2 . . 1 . . Treads 2 | 2 . . . . . Leg . | . . . . . . Wheel . | . . . . . . Hover . | . . . . . . Flight 1 | . . . 1 . . Utility 2 | . . . . . 2 Device . | . . . . . . Storage . | . . . . . . Processor . | . . . . . . Hackware 1 | . . . . . 1 Protection 1 | . . . . . 1 Artifact . | . . . . . . Weapon 1 | . . . . . 1 Energy Gun . | . . . . . . Energy Cannon . | . . . . . . Ballistic Gun 1 | . . . . . 1 Ballistic Cannon . | . . . . . . Launcher . | . . . . . . Special Weapon . | . . . . . . Impact Weapon . | . . . . . . Slashing Weapon . | . . . . . . Piercing Weapon . | . . . . . . Special Melee Weapon . | . . . . . . Unidentified Prototypes . | . . . . . . Parts Lost 3 | . . . 2 . 1 Power . | . . . . . . Propulsion 3 | . . . 2 . 1 Utility . | . . . . . . Weapon . | . . . . . . Highest Loss Streak 2 | . . . 2 . 1 To Critical Strikes . | . . . . . . Average Slot Usage (%) 13 | . 28 22 11 11 8 Treads 8 | . 28 22 7 . . Flight 3 | . . . 3 11 . Naked Turns 149 | . . . 86 . 63 Heaviest Build 2 | . . . . . 2 Greatest Support 3 | 3 3 3 3 3 3 Greatest Overweight (x) . | . . . . . . Average Overweight (x) . | . . . . . . Largest Inventory Capacity 5 | 5 5 5 5 5 5 Average Capacity 5 | 5 5 5 5 5 5 Most Carried 3 | . . . 1 3 3 Average Carried . | . . . . 1 2 Final Capacity 5 | 5 5 5 5 5 5 Final Carried 3 | . . . 1 3 3 Class Distribution -------------------- 100% | Mutant Dominant Class ---------------- Mutant | -10/Materials Mutant | -9/Materials Mutant | -9/Mines Mutant | -9/Exiles Mutant | -8/Mines Resources | -11 -10 -9 -9 -9 -8 ----------- Run | Jun Mat Mat Min Exi Min Matter Collected 235 | 220 . . 10 . 5 Remotely . | . . . . . . Salvage Created 49 | . . . . . 49 Parts 1 | . . . . . 1 Haulers Intercepted . | . . . . . . Recyclers Shooed 2 | . . . 2 . . Parts Field Recycled . | . . . . . . Retrieved Matter . | . . . . . . Parts Self-Destructed . | . . . . . . Prevented . | . . . . . . Kills | -11 -10 -9 -9 -9 -8 ------- Run | Jun Mat Mat Min Exi Min Combat Hostiles Destroyed 1 | . . . . . 1 Guns 1 | . . . . . 1 Classes Destroyed 1 | . . . . . 1 Grunt 1 | . . . . . 1 Best Kill Streak 1 | . . . . . 1 Combat Bots Only 1 | . . . . . 1 Max Kills in Single Turn 1 | . . . . . 1 Gunslinging . | . . . . . . Exploded . | . . . . . . Melee . | . . . . . . Uniques/NPCs Destroyed . | . . . . . . Combat | -11 -10 -9 -9 -9 -8 -------- Run | Jun Mat Mat Min Exi Min Damage Taken 828 | . 174 180 127 . 347 Core 380 | . 61 31 98 . 190 Absorbed by Shields . | . . . . . . Core Remaining (%) 87 | 100 75 . . . . Volleys Fired . | . . . . . . Largest . | . . . . . . Hottest . | . . . . . . Shots Fired 10 | . . . . . 10 Gun 10 | . . . . . 10 Cannon . | . . . . . . Launcher . | . . . . . . Special . | . . . . . . Kinetic 10 | . . . . . 10 Thermal . | . . . . . . Explosive . | . . . . . . Electromagnetic . | . . . . . . Robot Hit Streak 10 | . . . . . 10 Robot Miss Streak . | . . . . . . Penetration Max . | . . . . . . Secondary Targets . | . . . . . . Autonomous 10 | . . . . . 10 Shots Hit Robots 10 | . . . . . 10 Core Hits 2 | . . . . . 2 Critical Kills . | . . . . . . Critical Parts Destroyed . | . . . . . . Critical Strikes . | . . . . . . Melee Attacks . | . . . . . . Impact . | . . . . . . Slashing . | . . . . . . Piercing . | . . . . . . Sneak Attacks . | . . . . . . Combat Hostiles . | . . . . . . Follow-up Attacks . | . . . . . . Damage Inflicted 326 | . 11 16 21 . 278 Guns 278 | . . . . . 278 Cannons . | . . . . . . Explosions . | . . . . . . Melee . | . . . . . . Ramming 48 | . 11 16 21 . . Kinetic 278 | . . . . . 278 Thermal . | . . . . . . Explosive . | . . . . . . Electromagnetic . | . . . . . . Impact . | . . . . . . Slashing . | . . . . . . Piercing . | . . . . . . Highest Corruption 1 | . 1 . . . . Average Corruption 1 | . 1 . . . . Corruption Purged . | . . . . . . Corruption Blocked . | . . . . . . Overload Shots . | . . . . . . Overflow Damage . | . . . . . . Projectiles . | . . . . . . Explosions . | . . . . . . Melee . | . . . . . . Knockbacks . | . . . . . . Impact . | . . . . . . Kinetic . | . . . . . . Secondary . | . . . . . . Self-Inflicted Damage 23 | . 5 8 10 . . Shots . | . . . . . . Rammed 8 | . 2 1 5 . . Targets Rammed 8 | . 2 1 5 . . Kicked . | . . . . . . Crushed . | . . . . . . Highest Temperature 8 | . . . . . 8 Average Temperature 8 | . . . . . 8 Received Heat Transfer 303 | . 57 30 18 . 198 Siege Activations . | . . . . . . Robots Corrupted . | . . . . . . Combat Hostiles . | . . . . . . Parts Fried . | . . . . . . Impact Corruptions . | . . . . . . Robots Melted . | . . . . . . Combat Hostiles . | . . . . . . Parts Melted . | . . . . . . Heat Transferred . | . . . . . . Parts Sabotaged . | . . . . . . Parts Stolen . | . . . . . . Parts Stripped . | . . . . . . Power Chain Reactions . | . . . . . . Missiles Intercepted . | . . . . . . Alert | -11 -10 -9 -9 -9 -8 ------- Run | Jun Mat Mat Min Exi Min Peak Influence 239 | . 15 58 239 . 113 Initial 22 | . . 5 22 . . Average 72 | . 12 29 106 . 53 Maximum Alert Level 1 | . . . 1 . . Low Security (%) 96 | 100 100 100 94 . 100 Level 1 3 | . . . 5 . . Level 2 . | . . . . . . Level 3 . | . . . . . . Level 4 . | . . . . . . Level 5 . | . . . . . . High Security . | . . . . . . Max Security . | . . . . . . Squads Dispatched 4 | . 3 1 . . . Investigation 2 | . 2 . . . . Extermination . | . . . . . . Reinforcement 2 | . 1 1 . . . Assault . | . . . . . . Garrison . | . . . . . . Intercept . | . . . . . . Searches Triggered . | . . . . . . Construction Impeded . | . . . . . . Haulers Reinforced . | . . . . . . Active Scanning Responses . | . . . . . . Cargo Convoy Interrupts . | . . . . . . Stealth | -11 -10 -9 -9 -9 -8 --------- Run | Jun Mat Mat Min Exi Min Distress Signals 3 | . . 3 . . . Communications Jammed . | . . . . . . Distress Signals . | . . . . . . Times Spotted 46 | . 14 10 14 . 8 Peak Tracking Total 13 | . 12 13 4 . 7 Tactical Retreats 5 | . . . 3 . 2 Traps | -11 -10 -9 -9 -9 -8 ------- Run | Jun Mat Mat Min Exi Min Traps Triggered 2 | . 2 . . . . Indirectly . | . . . . . . Trap Hack Attempts . | . . . . . . Triggered . | . . . . . . Disarmed . | . . . . . . Reprogrammed . | . . . . . . Reused . | . . . . . . Traps Extracted . | . . . . . . Installed . | . . . . . . Triggered . | . . . . . . Machines | -11 -10 -9 -9 -9 -8 ---------- Run | Jun Mat Mat Min Exi Min Machines Disabled . | . . . . . . Max in Single Turn . | . . . . . . Machines Repaired . | . . . . . . Machines Sabotaged . | . . . . . . Overloaded Fab Kills . | . . . . . . Hacking | -11 -10 -9 -9 -9 -8 --------- Run | Jun Mat Mat Min Exi Min Machines Accessed 3 | . 1 1 . 1 . Terminals 2 | . 1 1 . . . Fabricators . | . . . . . . Repair Stations . | . . . . . . Recycling Units . | . . . . . . Scanalyzers . | . . . . . . Garrison Access . | . . . . . . Total Hacks 7 | . 3 3 . 1 . Successful 2 | . . 1 . 1 . Failed 5 | . 3 2 . . . Catastrophic 3 | . 2 1 . . . Database Lockouts . | . . . . . . Manual 7 | . 3 3 . 1 . Terminals 6 | . 3 3 . . . Fabricators . | . . . . . . Repair Stations . | . . . . . . Recycling Units . | . . . . . . Scanalyzers . | . . . . . . Garrison Access . | . . . . . . Terminal Hacks 2 | . . 1 . 1 . Branch Access Points 1 | . . 1 . . . EX-Prototype ID Bank 1 | . . . . 1 . Fabricator Hacks . | . . . . . . Repair Station Hacks . | . . . . . . Recycling Unit Hacks . | . . . . . . Scanalyzer . | . . . . . . Garrison Access Hacks . | . . . . . . Unauthorized Hacks . | . . . . . . Terminals . | . . . . . . Fabricators . | . . . . . . Repair Stations . | . . . . . . Recycling Units . | . . . . . . Scanalyzers . | . . . . . . Garrison Access . | . . . . . . Data Cores Recovered . | . . . . . . Used . | . . . . . . Hacking Detections 2 | . 1 1 . . . Full Trace Events 1 | . 1 . . . . Feedback Events . | . . . . . . Feedback Blocked . | . . . . . . Robot Schematics Acquired . | . . . . . . Robots Built . | . . . . . . Authchips . | . . . . . . Time . | . . . . . . Total Robot Build Rating . | . . . . . . Part Schematics Acquired . | . . . . . . Parts Built . | . . . . . . Authchips . | . . . . . . Time . | . . . . . . Total Part Build Rating . | . . . . . . Parts Repaired . | . . . . . . Time . | . . . . . . Parts Recycled . | . . . . . . Recycled Matter . | . . . . . . Retrieved Matter . | . . . . . . Retrieved Components . | . . . . . . Parts Scanalyzed . | . . . . . . Part Schematics Acquired . | . . . . . . Parts Damaged . | . . . . . . Bothacking | -11 -10 -9 -9 -9 -8 ------------ Run | Jun Mat Mat Min Exi Min Used RIF Installer . | . . . . . . Robots Hacked . | . . . . . . Non-combat . | . . . . . . Combat . | . . . . . . Robot Hacks Applied . | . . . . . . Relay Couplers Released . | . . . . . . Fabnet Peak Effective % . | . . . . . . Robots Rewired . | . . . . . . Allies Hacked . | . . . . . . Hacks Repelled . | . . . . . . Allies | -11 -10 -9 -9 -9 -8 -------- Run | Jun Mat Mat Min Exi Min Total Allies 3 | . . . 3 . . Largest Group 3 | . . . 3 . . Highest-Rated Group 40 | . . . 40 . . Highest-Rated Ally 16 | . . . 16 . . Total Orders . | . . . . . . Ally Attacks 29 | . . . 29 . . Total Damage 387 | . . . 387 . . Kills 7 | . . . 7 . . Allies Corrupted . | . . . . . . Allies Melted . | . . . . . . Intel | -11 -10 -9 -9 -9 -8 ------- Run | Jun Mat Mat Min Exi Min Robot Analysis Total . | . . . . . . Derelict Logs Recovered 1 | . . . 1 . . Drone Launches . | . . . . . . Drone Recoveries . | . . . . . . Exploration | -11 -10 -9 -9 -9 -8 ------------- Run | Jun Mat Mat Min Exi Min Turns Passed 631 | 16 56 71 278 103 107 Spaces Moved 1202 | 26 108 140 540 204 184 Core 1202 | 26 108 140 540 204 184 Treads . | . . . . . . Legs . | . . . . . . Wheels . | . . . . . . Hover . | . . . . . . Flight . | . . . . . . Fastest Speed 50 | 50 50 50 50 50 50 Average Speed 50 | 50 50 50 50 50 50 Slowest Speed 50 | 50 50 50 50 50 50 Overloaded Moves . | . . . . . . Propulsion Burnouts . | . . . . . . Robots Hopped . | . . . . . . Cave-ins Triggered . | . . . . . . Exploration Rate (%) 41 | 4 32 19 86 60 47 Regions Visited 5 Branch Regions 3 Pre-discovered Areas . | . . . . . . Known Exits Taken 1 | . . 1 . . . Unknown Exits Taken 4 | 1 1 . 1 1 . Scrap Searched 4 | . . . 2 . 2 Spaces Dug . | . . . . . . Terrain Destroyed 5 | . . . . . 5 Melee . | . . . . . . Projectile 5 | . . . . . 5 AOE . | . . . . . . Terrain Rammed . | . . . . . . Walls Destroyed . | . . . . . . Machines Disabled . | . . . . . . Actions | -11 -10 -9 -9 -9 -8 --------- Run | Jun Mat Mat Min Exi Min Total 1224 | 27 109 140 546 204 198 Wait 10 | . . . . . 10 Move 1198 | 25 108 139 539 203 184 Hop . | . . . . . . Pick Up 2 | . . . 1 1 . Fast Attach 5 | 2 . . 1 . 2 Attach 1 | . . . . . 1 Detach 1 | . . . . . 1 Swap . | . . . . . . Drop . | . . . . . . Fire . | . . . . . . Melee . | . . . . . . Ram 7 | . 1 1 5 . . Kick . | . . . . . . Crush . | . . . . . . Escape Stasis . | . . . . . . Rewire . | . . . . . . Trap . | . . . . . . Miscellaneous . | . . . . . . Route ------- -11/Junkyard -10/Materials (discovered 2 exits: *Mat x2) -9/Materials -9/Mines (discovered 3 exits: [*Mat x2] / *Exi) -9/Exiles (discovered 2 exits: [*Min x2]) -8/Mines History --------- Turn | Location | Event 8 | -11/Junkyard | Discovered new exit (range 15) 17 | -11/Junkyard | Entered Materials 41 | -10/Materials | Discovered new exit (range 13) 64 | -10/Materials | Discovered new exit (range 16) 73 | -10/Materials | Entered another Materials area 73 | -9/Materials | Evolved 2 slots: Utility x2 85 | -9/Materials | Identified exit to Mines 144 | -9/Materials | Entered Mines 183 | -9/Mines | Met a Derelict bent on vengeance 185 | -9/Mines | Assisted by bots powering up and referring to "LRC-V3" 215 | -9/Mines | Discovered new exit (range 8) 255 | -9/Mines | Learned location of 1 exit from Proximity Caves 255 | -9/Mines | Discovered new exit (range 7) 312 | -9/Mines | Build established: Mutant 323 | -9/Mines | Found a damaged Exp. Sensor Array with a note attached 324 | -9/Mines | Found Prototype Device 420 | -9/Mines | Deemed a non-threat by the Exiles lab entrance 420 | -9/Mines | Discovered new exit (range 5) 422 | -9/Mines | Entered Exiles 429 | -9/Exiles | Discovered new exit (range 15) 435 | -9/Exiles | Met 8R-AWN 443 | -9/Exiles | Met EX-HEX 457 | -9/Exiles | Met EX-BIN 463 | -9/Exiles | Aligned with FarCom system 463 | -9/Exiles | Given EX-Vault access code 475 | -9/Exiles | Opened EX-Vault 478 | -9/Exiles | Found AWS/Gauss 490 | -9/Exiles | Warned to stay clear of 0b10 Research branches 503 | -9/Exiles | Met EX-DEC 521 | -9/Exiles | Discovered new exit (range 10) 525 | -9/Exiles | Left Exiles lab with AWS/Gauss 525 | -9/Exiles | Entered Mines 538 | -8/Mines | Core integrity fell below 50% 632 | -8/Mines | Self-destructed Last Messages --------------- 00527_ Slug penetrates G-47 Trooper. 00531_ Slug penetrates Wall. 00532_ Slug penetrates G-47 Trooper. 00532_ Slug penetrates Wall. 00533_ Slug penetrates G-47 Trooper. 00533_ G-47 Trooper destroyed. 00539_ Searching scrap... 00539_ Found Seismic Detector. 00539_ Found 32 Matter. 00540_ Acquired 5 matter. 00541_ Critical hit (Burn: +37). 00584_ K-01 Serf collects debris. 00597_ Searching scrap... 00597_ Found Thermal Generator. 00597_ Found System Shield. 00597_ Found EMP Blaster. 00597_ Found Imp. Utility Shielding. 00597_ Found 17 Matter. 00599_ Acquired System Shield. 00601_ Acquired Imp. Utility Shielding. Map ----- +----------------------------------------------------+ | ### #???????????????????????????????????? | | ## #???????????????????????????????????? | | #?# #???????????????????????????????????? | | #?## ######??????????????????????####????# | | #?## #????????????????# ???## ###### | | ### #### #????????????????# ### | | #??# #????????????????# ##### | | #??# #######??????????# #???# | | ## #?# g #??????????####### ##???# | | #### ######### #????????????????# ##???# | | ##??## #??????#b#????????????????# ##??# | | ##????# #??????# ######???????????# ##?# | | ##?????# ##??????# #???????????# #?# | | ###??????## ##???????##### #???????????# #?? | | ???????????###????????????# #???????????# ##?? | | ??????????????????????????# #??????????## ##??? | | ??????????????????????????# #????????### #???? | | ??????????????????????????# #???????## #???? | | #?????????????????????????# ###?????# #???? | | #?#######?????????????????# g ##???## ##??? | | ### ##????????####???## ##?## #??? | | ## #????????# ##??# ### #??? | | """ ##???????# #??# ### ##??? | | ## """ #??????## ???## ##?#####???? | | ?# """ ##?????? ####### ##?????????? | | ## #??????# ## @ ####??????? | | # ######## ## ###????? | | # ###### #???? | | # ##############????## ## #??? | | ## ## ##??????????????????# ##?###### #??? | | ?#########??????????????????## ##????????? #??? | | ???????????????????????????## #??????????????? | | ???????????????????????????# ##??????????????? | | ???????????????????????????#######???????????????? | | ?????????????????????????????????????????????????? | | ?????????????????????????????????????????????????? | | ?????????????????????????????????????????????????? | | | | | | | | | | | | | | | | | | | | | | | | | | | +----------------------------------------------------+ Best States ------------- Heat Dissipation 28 Energy Generation 5 Energy Capacity 100 Matter Stores 300 Matter Capacity 300 Sight Range 16 Terrain Scan Density 10 Utility Shielding 66 Evasion (%) 50 Defensive Hacking 10 Item Schematics ----------------- None Robot Schematics ------------------ None Fabricated ------------ Nothing Alien Tech Used ----------------- None Achievements -------------- None Challenges ------------ None Game ------ Seed ResetVariableShredder Manual? 0 Play Time 00:06:40 Cumulative 174.6 hours Start 2023.05.05 @ 07:24:14 End 2023.05.05 @ 07:30:35 Sessions 1 Manual Loads 0 Difficulty Rogue Special Mode None Game No. 519 Rogue 519 Adventurer 0 Explorer 0 Win Type - Total 8 Types 7/0/0/1/0/0/0/0/0 Lore% 71 Gallery% 74 Achievement% 65 Wizard Run 0 Options --------- ASCII 0 Keyboard 0 Movement Numpad Keybinds 0 Fullscreen 1 Font 16/SmallcapsGlow Map View 75x55 Tactical HUD 1 Map Filters NONE Filters NONE Steam 1 RUN: e4add170-83aa-40fc-80a5-7beb355bc34d